[Event "EYTCC Open U18 2022"]
[Site "Thessaloniki"]
[Date "2022.07.15"]
[Round "4.16"]
[White "Marakovits, Nico"]
[Black "Pasztor, Balazs"]
[Result "1/2-1/2"]
[ECO "A28"]
[WhiteElo "2259"]
[BlackElo "2336"]
[Annotator "ChessBase"]
[PlyCount "83"]
[EventDate "2022.07.12"]
[EventType "team-tourn"]
[EventCountry "GRE"]
[SourceTitle "playchess.com"]
[Source "ChessBase"]
[SourceQuality "1"]
[WhiteTeam "Austria"]
[BlackTeam "Hungary"]
[WhiteTeamCountry "AUT"]
[BlackTeamCountry "HUN"]
[TimeControl "40/5400+30:1800+30"]

1. c4 {[%emt 0:00:02]} e5 {[%emt 0:00:50]} 2. Nc3 {[%emt 0:00:12]} Nf6 {[%emt 0:00:15]} 3. Nf3 {[%emt 0:01:21]} Nc6 {[%emt 0:00:09]} 4. a3 {[%emt 0:00:07]} d5 {[%emt 0:02:17]} 5. cxd5 {[%emt 0:00:11]} Nxd5 {[%emt 0:00:12]} 6. e4 {[%emt 0:00:07]} Nxc3 {[%emt 0:08:46]} 7. bxc3 {[%emt 0:00:36]} Bd6 {[%emt 0:05:32]} 8. d4 {[%emt 0:10:53]} O-O {[%emt 0:03:18]} 9. Be2 {[%emt 0:16:12]} Re8 {[%emt 0:09:07]} 10. Qd3 {[%emt 0:10:08]} Qe7 {[%emt 0:06:53]} 11. d5 {[%emt 0:14:19]} Nb8 {[%emt 0:03:18]} 12. Nd2 {[%emt 0:01:22]} Nd7 {[%emt 0:02:55]} 13. Nb3 {[%emt 0:00:59]} a5 {[%emt 0:09:34]} 14. a4 {[%emt 0:00:43]} Nb6 {[%emt 0:05:43]} 15. Be3 {[%emt 0:04:16]} Bd7 {[%emt 0:05:47]} 16. Bxb6 {[%emt 0:04:37]} cxb6 {[%emt 0:00:07]} 17. Qe3 {[%emt 0:00:28]} Rec8 {[%emt 0:06:17]} 18. O-O {[%emt 0:01:13]} Qe8 {[%emt 0:03:12]} 19. Qxb6 {[%emt 0:04:32]} Bc7 {[%emt 0:01:04]} 20. Qe3 {[%emt 0:00:41]} Bxa4 {[%emt 0:02:04]} 21. c4 {[%emt 0:03:47]} b6 {[%emt 0:01:35]} 22. c5 {[%emt 0:03:51]} bxc5 {[%emt 0:01:35]} 23. Nd2 {[%emt 0:00:10]} c4 {[%emt 0:04:25]} 24. Nxc4 {[%emt 0:00:56]} Bb5 {[%emt 0:00:34]} 25. Rfc1 {[%emt 0:01:26]} Bxc4 {[%emt 0:01:23]} 26. Rxc4 {[%emt 0:00:06]} Bd6 {[%emt 0:01:16]} 27. Rxc8 {[%emt 0:01:13]} Qxc8 {[%emt 0:00:12]} 28. Bb5 {[%emt 0:01:18]} Bc5 {[%emt 0:02:10]} 29. Qc1 {[%emt 0:03:17]} Bb4 {[%emt 0:01:43]} 30. Bc6 {[%emt 0:01:31]} Rb8 {[%emt 0:00:14]} 31. Qc4 {[%emt 0:01:12]} Qc7 {[%emt 0:00:56]} 32. g3 {[%emt 0:02:00]} Qb6 {[%emt 0:02:34]} 33. Ra2 {[%emt 0:10:32]} Bd6 {[%emt 0:01:18]} 34. Kg2 {[%emt 0:00:32]} g6 {[%emt 0:00:53]} 35. Qc3 {[%emt 0:00:50]} Qb4 {[%emt 0:01:03]} 36. Qf3 {[%emt 0:00:39]} Kg7 {[%emt 0:01:25]} 37. Qe2 {[%emt 0:01:02]} Qc3 {[%emt 0:03:15]} 38. Rc2 {[%emt 0:00:23]} Qd4 {[%emt 0:00:42]} 39. Rd2 {[%emt 0:00:19]} Qc3 {[%emt 0:00:44]} 40. Rc2 {[%emt 0:00:00]} Qd4 {[%emt 0:00:00]} 41. Rd2 {[%emt 0:00:08]} Qc3 {[%emt 0:00:40]} 42. Rc2 {[%emt 0:00:05]} 1/2-1/2

[Event "EYTCC Open U18 2022"]
[Site "Thessaloniki"]
[Date "2022.07.15"]
[Round "4.17"]
[White "Trost, Edvin"]
[Black "Subelj, Jan"]
[Result "0-1"]
[ECO "D30"]
[WhiteElo "2345"]
[BlackElo "2498"]
[Annotator "ChessBase"]
[PlyCount "88"]
[EventDate "2022.07.12"]
[EventType "team-tourn"]
[EventCountry "GRE"]
[SourceTitle "playchess.com"]
[Source "ChessBase"]
[SourceQuality "1"]
[WhiteTeam "Sweden"]
[BlackTeam "Slovenia"]
[WhiteTeamCountry "SWE"]
[BlackTeamCountry "SLO"]
[TimeControl "40/5400+30:1800+30"]

1. d4 {[%emt 0:00:04]} d5 {[%emt 0:00:27]} 2. c4 {[%emt 0:00:24]} e6 {[%emt 0:01:10]} 3. Nf3 {[%emt 0:00:18]} c6 {[%emt 0:00:32]} 4. e3 {[%emt 0:06:44]} f5 {[%emt 0:03:07]} 5. Bd3 {[%emt 0:00:50]} Bd6 {[%emt 0:00:51]} 6. O-O {[%emt 0:02:37]} Nh6 {[%emt 0:00:58]} 7. b3 {[%emt 0:01:38]} Qe7 {[%emt 0:07:15]} 8. Bb2 {[%emt 0:00:07]} Nd7 {[%emt 0:01:57]} 9. Qc1 {[%emt 0:01:45]} Qf6 {[%emt 0:18:44]} 10. Ba3 {[%emt 0:04:00]} Nf7 {[%emt 0:09:40]} 11. Bxd6 {[%emt 0:03:52]} Nxd6 {[%emt 0:00:07]} 12. Qa3 {[%emt 0:01:46]} e5 {[%emt 0:15:51]} 13. dxe5 {[%emt 0:02:26]} Nxe5 {[%emt 0:00:07]} 14. Nxe5 {[%emt 0:00:04]} Qxe5 {[%emt 0:00:07]} 15. Nd2 {[%emt 0:00:03]} dxc4 {[%emt 0:01:03]} 16. Nxc4 {[%emt 0:06:54]} Nxc4 {[%emt 0:00:06]} 17. Bxc4 {[%emt 0:00:04]} Qe7 {[%emt 0:01:21]} 18. Qb2 {[%emt 0:01:31]} Bd7 {[%emt 0:02:56]} 19. Qd4 {[%emt 0:03:23]} c5 {[%emt 0:04:15]} 20. Qf4 {[%emt 0:01:12]} O-O-O {[%emt 0:01:41]} 21. Bd5 {[%emt 0:14:05]} g5 {[%emt 0:00:45]} 22. Qf3 {[%emt 0:01:29]} Kb8 {[%emt 0:00:11]} 23. Rfd1 {[%emt 0:00:37]} Bc8 {[%emt 0:01:06]} 24. Rd2 {[%emt 0:02:08]} Rd6 {[%emt 0:02:44]} 25. Rad1 {[%emt 0:04:57]} Rhd8 {[%emt 0:00:08]} 26. Qg3 {[%emt 0:00:35]} f4 {[%emt 0:00:43]} 27. Qf3 {[%emt 0:00:20]} fxe3 {[%emt 0:08:40]} 28. fxe3 {[%emt 0:00:01]} Bg4 {[%emt 0:00:09]} 29. Qxg4 {[%emt 0:00:58]} Qxe3+ {[%emt 0:00:06]} 30. Kh1 {[%emt 0:02:26]} Rxd5 {[%emt 0:00:05]} 31. Rxd5 {[%emt 0:00:05]} Rxd5 {[%emt 0:00:05]} 32. Rf1 {[%emt 0:00:05]} a6 {[%emt 0:00:07]} 33. h3 {[%emt 0:00:03]} Ka7 {[%emt 0:00:57]} 34. Qc4 {[%emt 0:04:36]} Qe5 {[%emt 0:04:37]} 35. Qc2 {[%emt 0:01:56]} h5 {[%emt 0:00:37]} 36. Qf2 {[%emt 0:04:04]} g4 {[%emt 0:01:00]} 37. Re1 {[%emt 0:00:48]} g3 {[%emt 0:01:05]} 38. Qf1 {[%emt 0:00:47]} Qc3 {[%emt 0:00:42]} 39. Rc1 {[%emt 0:00:37]} Qd2 {[%emt 0:01:30]} 40. Qg1 {[%emt 0:00:00]} Re5 {[%emt 0:00:00]} 41. a3 {[%emt 0:02:04]} Qf2 {[%emt 0:00:37]} 42. Qd1 {[%emt 0:02:33]} Re2 {[%emt 0:00:08]} 43. Qd5 {[%emt 0:00:48]} Qe1+ {[%emt 0:00:11]} 44. Rxe1 {[%emt 0:00:06]} Rxe1# {[%emt 0:00:05]} 0-1

[Event "EYTCC Open U18 2022"]
[Site "Thessaloniki"]
[Date "2022.07.15"]
[Round "4.18"]
[White "Marn, Jan"]
[Black "Olsson, William"]
[Result "0-1"]
[ECO "D43"]
[WhiteElo "2282"]
[BlackElo "2284"]
[Annotator "ChessBase"]
[PlyCount "58"]
[EventDate "2022.07.12"]
[EventType "team-tourn"]
[EventCountry "GRE"]
[SourceTitle "playchess.com"]
[Source "ChessBase"]
[SourceQuality "1"]
[WhiteTeam "Slovenia"]
[BlackTeam "Sweden"]
[WhiteTeamCountry "SLO"]
[BlackTeamCountry "SWE"]
[TimeControl "40/5400+30:1800+30"]

1. d4 {[%emt 0:00:03]} d5 {[%emt 0:00:04]} 2. c4 {[%emt 0:00:07]} c6 {[%emt 0:00:03]} 3. Nc3 {[%emt 0:00:09]} Nf6 {[%emt 0:00:04]} 4. Nf3 {[%emt 0:00:04]} e6 {[%emt 0:00:03]} 5. Qd3 {[%emt 0:00:05]} dxc4 {[%emt 0:00:04]} 6. Qxc4 {[%emt 0:00:06]} b5 {[%emt 0:00:05]} 7. Qd3 {[%emt 0:00:06]} a6 {[%emt 0:00:03]} 8. g4 {[%emt 0:00:13]} Nxg4 {[%emt 0:01:45]} 9. Bf4 {[%emt 0:00:13]} Bb7 {[%emt 0:05:28]} 10. Rg1 {[%emt 0:00:33]} Nf6 {[%emt 0:03:37]} 11. e4 {[%emt 0:00:29]} c5 {[%emt 0:06:58]} 12. dxc5 {[%emt 0:31:41]} Qxd3 {[%emt 0:01:04]} 13. Bxd3 {[%emt 0:00:07]} Bxc5 {[%emt 0:00:07]} 14. Be5 {[%emt 0:03:29]} Nbd7 {[%emt 0:05:25]} 15. Rxg7 {[%emt 0:03:02]} Nxe5 {[%emt 0:16:16]} 16. Nxe5 {[%emt 0:00:07]} Bd4 {[%emt 0:00:25]} 17. f4 {[%emt 0:31:12]} Nd7 {[%emt 0:05:14]} 18. Nxf7 {[%emt 0:02:06]} Bxg7 {[%emt 0:02:03]} 19. Nd6+ {[%emt 0:00:05]} Kd8 {[%emt 0:05:25]} 20. Nxb7+ {[%emt 0:00:06]} Kc7 {[%emt 0:00:09]} 21. Na5 {[%emt 0:00:06]} Nc5 {[%emt 0:00:22]} 22. Ke2 {[%emt 0:01:34]} Bh6 {[%emt 0:03:45]} 23. Rc1 {[%emt 0:09:38]} Kb6 {[%emt 0:02:55]} 24. b4 {[%emt 0:01:49]} Nxd3 {[%emt 0:01:53]} 25. Kxd3 {[%emt 0:00:11]} Bxf4 {[%emt 0:00:25]} 26. Rf1 {[%emt 0:01:22]} Rad8+ {[%emt 0:00:14]} 27. Kc2 {[%emt 0:00:15]} Rhf8 {[%emt 0:01:10]} 28. Rf3 {[%emt 0:01:24]} Be5 {[%emt 0:00:16]} 29. Rh3 {[%emt 0:00:25]} Rc8 {[%emt 0:00:07]} 0-1

[Event "EYTCC Open U18 2022"]
[Site "Thessaloniki"]
[Date "2022.07.15"]
[Round "4.19"]
[White "Falkevall, Axel"]
[Black "Nareks, Matic"]
[Result "1-0"]
[ECO "B22"]
[WhiteElo "2275"]
[BlackElo "2221"]
[Annotator "ChessBase"]
[PlyCount "89"]
[EventDate "2022.07.12"]
[EventType "team-tourn"]
[EventCountry "GRE"]
[SourceTitle "playchess.com"]
[Source "ChessBase"]
[SourceQuality "1"]
[WhiteTeam "Sweden"]
[BlackTeam "Slovenia"]
[WhiteTeamCountry "SWE"]
[BlackTeamCountry "SLO"]
[TimeControl "40/5400+30:1800+30"]

1. e4 {[%emt 0:00:03]} c5 {[%emt 0:00:11]} 2. c3 {[%emt 0:00:09]} d5 {[%emt 0:00:10]} 3. exd5 {[%emt 0:00:07]} Qxd5 {[%emt 0:00:06]} 4. d4 {[%emt 0:00:13]} g6 {[%emt 0:00:15]} 5. Nf3 {[%emt 0:00:18]} Bg7 {[%emt 0:00:24]} 6. Nbd2 {[%emt 0:00:51]} cxd4 {[%emt 0:00:32]} 7. Bc4 {[%emt 0:00:43]} Qh5 {[%emt 0:01:23]} 8. Qb3 {[%emt 0:01:45]} Nh6 {[%emt 0:01:43]} 9. Nxd4 {[%emt 0:02:43]} O-O {[%emt 0:03:32]} 10. O-O {[%emt 0:03:13]} Nc6 {[%emt 0:05:58]} 11. Nxc6 {[%emt 0:05:05]} bxc6 {[%emt 0:00:05]} 12. Re1 {[%emt 0:14:52]} Be5 {[%emt 0:10:16]} 13. Nf3 {[%emt 0:06:44]} Bd6 {[%emt 0:01:57]} 14. Be2 {[%emt 0:03:19]} Bg4 {[%emt 0:27:12]} 15. h3 {[%emt 0:03:21]} Bxh3 {[%emt 0:00:26]} 16. gxh3 {[%emt 0:11:46]} Qxh3 {[%emt 0:00:20]} 17. Qc4 {[%emt 0:01:10]} g5 {[%emt 0:11:20]} 18. Bxg5 {[%emt 0:10:04]} Ng4 {[%emt 0:00:51]} 19. Bf4 {[%emt 0:01:47]} Kh8 {[%emt 0:00:32]} 20. Qd4+ {[%emt 0:11:46]} f6 {[%emt 0:05:25]} 21. Ng5 {[%emt 0:01:27]} Qh5 {[%emt 0:04:45]} 22. Bxd6 {[%emt 0:01:21]} Rg8 {[%emt 0:00:11]} 23. Bg3 {[%emt 0:01:52]} Rxg5 {[%emt 0:00:14]} 24. Bxg4 {[%emt 0:03:00]} Rxg4 {[%emt 0:00:06]} 25. Re4 {[%emt 0:02:14]} Rg7 {[%emt 0:00:59]} 26. Kg2 {[%emt 0:04:00]} e5 {[%emt 0:01:23]} 27. Qe3 {[%emt 0:02:10]} Re8 {[%emt 0:00:37]} 28. Qe2 {[%emt 0:03:55]} Qf7 {[%emt 0:00:24]} 29. Kh1 {[%emt 0:00:52]} Qe6 {[%emt 0:00:59]} 30. Qh5 {[%emt 0:01:46]} Rg5 {[%emt 0:00:06]} 31. Qh2 {[%emt 0:00:33]} Qd5 {[%emt 0:00:24]} 32. Rae1 {[%emt 0:00:40]} c5 {[%emt 0:00:31]} 33. c4 {[%emt 0:00:20]} Qb7 {[%emt 0:00:07]} 34. Qg2 {[%emt 0:01:05]} Qxb2 {[%emt 0:00:24]} 35. Rh4 {[%emt 0:00:38]} Qc3 {[%emt 0:00:39]} 36. Qe4 {[%emt 0:00:38]} Re7 {[%emt 0:00:28]} 37. Qe3 {[%emt 0:00:40]} Qb4 {[%emt 0:00:58]} 38. Rd1 {[%emt 0:00:17]} Kg7 {[%emt 0:01:44]} 39. Kh2 {[%emt 0:00:16]} Rg6 {[%emt 0:00:54]} 40. Qf3 {[%emt 0:00:00]} Qa4 {[%emt 0:00:00]} 41. Rd8 {[%emt 0:01:57]} Qc2 {[%emt 0:09:26]} 42. Qa8 {[%emt 0:03:23]} Rg5 {[%emt 0:00:51]} 43. Rg8+ {[%emt 0:02:27]} Kf7 {[%emt 0:00:07]} 44. Qd5+ {[%emt 0:01:18]} Re6 {[%emt 0:00:07]} 45. Re8 {[%emt 0:01:57]} 1-0

[Event "EYTCC Open U18 2022"]
[Site "Thessaloniki"]
[Date "2022.07.15"]
[Round "4.20"]
[White "Lavrencic, Matic"]
[Black "Wernberg, Hugo"]
[Result "1/2-1/2"]
[ECO "C95"]
[WhiteElo "2151"]
[BlackElo "2316"]
[Annotator "ChessBase"]
[PlyCount "123"]
[EventDate "2022.07.12"]
[EventType "team-tourn"]
[EventCountry "GRE"]
[SourceTitle "playchess.com"]
[Source "ChessBase"]
[SourceQuality "1"]
[WhiteTeam "Slovenia"]
[BlackTeam "Sweden"]
[WhiteTeamCountry "SLO"]
[BlackTeamCountry "SWE"]
[TimeControl "40/5400+30:1800+30"]

1. e4 {[%emt 0:00:03]} e5 {[%emt 0:00:13]} 2. Nf3 {[%emt 0:00:02]} Nc6 {[%emt 0:00:11]} 3. Bb5 {[%emt 0:00:07]} a6 {[%emt 0:00:06]} 4. Ba4 {[%emt 0:00:05]} Nf6 {[%emt 0:00:09]} 5. O-O {[%emt 0:00:09]} Be7 {[%emt 0:00:06]} 6. Re1 {[%emt 0:00:08]} b5 {[%emt 0:00:07]} 7. Bb3 {[%emt 0:00:06]} d6 {[%emt 0:00:07]} 8. c3 {[%emt 0:00:08]} O-O {[%emt 0:00:17]} 9. h3 {[%emt 0:00:10]} Nb8 {[%emt 0:00:15]} 10. d4 {[%emt 0:00:06]} Nbd7 {[%emt 0:00:07]} 11. c4 {[%emt 0:00:09]} Bb7 {[%emt 0:14:50]} 12. Nc3 {[%emt 0:00:09]} c6 {[%emt 0:04:05]} 13. a3 {[%emt 0:02:10]} Re8 {[%emt 0:22:48]} 14. Be3 {[%emt 0:10:09]} Bf8 {[%emt 0:05:35]} 15. cxb5 {[%emt 0:02:00]} axb5 {[%emt 0:01:56]} 16. dxe5 {[%emt 0:01:37]} Nxe5 {[%emt 0:02:00]} 17. Nxe5 {[%emt 0:03:39]} dxe5 {[%emt 0:04:59]} 18. Qe2 {[%emt 0:02:09]} Qa5 {[%emt 0:08:24]} 19. Rad1 {[%emt 0:04:35]} Red8 {[%emt 0:10:57]} 20. Bg5 {[%emt 0:01:47]} Be7 {[%emt 0:00:37]} 21. Rxd8+ {[%emt 0:14:19]} Rxd8 {[%emt 0:00:51]} 22. Rd1 {[%emt 0:00:26]} h6 {[%emt 0:02:48]} 23. Be3 {[%emt 0:08:05]} Bc8 {[%emt 0:04:05]} 24. f3 {[%emt 0:01:39]} Be6 {[%emt 0:01:05]} 25. Bxe6 {[%emt 0:00:29]} fxe6 {[%emt 0:00:07]} 26. Qc2 {[%emt 0:01:15]} Rxd1+ {[%emt 0:04:23]} 27. Qxd1 {[%emt 0:01:21]} Kf7 {[%emt 0:02:29]} 28. Ne2 {[%emt 0:02:00]} c5 {[%emt 0:02:22]} 29. Qc1 {[%emt 0:01:53]} c4 {[%emt 0:01:29]} 30. Qc3 {[%emt 0:01:33]} Qc7 {[%emt 0:00:38]} 31. b3 {[%emt 0:03:17]} Qd6 {[%emt 0:00:52]} 32. bxc4 {[%emt 0:01:21]} bxc4 {[%emt 0:00:49]} 33. Qxc4 {[%emt 0:03:48]} Qxa3 {[%emt 0:00:20]} 34. Kf2 {[%emt 0:00:44]} Nh5 {[%emt 0:01:46]} 35. Qc7 {[%emt 0:02:07]} Qd6 {[%emt 0:01:06]} 36. Qc1 {[%emt 0:02:46]} Qd8 {[%emt 0:01:43]} 37. Qc3 {[%emt 0:02:00]} Qd6 {[%emt 0:01:10]} 38. g3 {[%emt 0:00:43]} Nf6 {[%emt 0:00:57]} 39. h4 {[%emt 0:01:01]} Nd7 {[%emt 0:00:55]} 40. Qd2 {[%emt 0:00:00]} Qxd2 {[%emt 0:00:00]} 41. Bxd2 {[%emt 0:06:01]} Bc5+ {[%emt 0:09:21]} 42. Kf1 {[%emt 0:00:11]} Nb6 {[%emt 0:02:52]} 43. Bc3 {[%emt 0:02:02]} Nc4 {[%emt 0:03:15]} 44. Nc1 {[%emt 0:00:53]} Kf6 {[%emt 0:05:23]} 45. Nd3 {[%emt 0:01:29]} Bd4 {[%emt 0:02:35]} 46. Bb4 {[%emt 0:00:26]} Bb6 {[%emt 0:04:04]} 47. Ke2 {[%emt 0:01:04]} Na5 {[%emt 0:00:22]} 48. Bc3 {[%emt 0:02:06]} Nc6 {[%emt 0:00:53]} 49. Kf1 {[%emt 0:06:36]} Bd4 {[%emt 0:00:52]} 50. Bd2 {[%emt 0:00:26]} Bb6 {[%emt 0:03:03]} 51. Kg2 {[%emt 0:01:58]} Bd4 {[%emt 0:00:48]} 52. Nc1 {[%emt 0:01:07]} Bb6 {[%emt 0:00:35]} 53. Ne2 {[%emt 0:01:08]} Nd4 {[%emt 0:01:17]} 54. Ng1 {[%emt 0:00:12]} Nb3 {[%emt 0:00:34]} 55. Bc3 {[%emt 0:00:11]} Bd4 {[%emt 0:00:33]} 56. Be1 {[%emt 0:00:08]} Bb6 {[%emt 0:02:10]} 57. Nh3 {[%emt 0:00:22]} Na1 {[%emt 0:00:51]} 58. Nf2 {[%emt 0:00:56]} Bd4 {[%emt 0:01:08]} 59. Ba5 {[%emt 0:01:01]} Nc2 {[%emt 0:00:28]} 60. Ng4+ {[%emt 0:00:41]} Ke7 {[%emt 0:00:43]} 61. Bd2 {[%emt 0:03:33]} h5 {[%emt 0:00:15]} 62. Bg5+ {[%emt 0:00:50]} 1/2-1/2

[Event "EYTCC Open U18 2022"]
[Site "Thessaloniki"]
[Date "2022.07.15"]
[Round "4.21"]
[White "Bilych, Olexiy"]
[Black "Levin, Guy"]
[Result "1-0"]
[ECO "B90"]
[WhiteElo "2365"]
[BlackElo "2363"]
[Annotator "ChessBase"]
[PlyCount "171"]
[EventDate "2022.07.12"]
[EventType "team-tourn"]
[EventCountry "GRE"]
[SourceTitle "playchess.com"]
[Source "ChessBase"]
[SourceQuality "1"]
[WhiteTeam "Ukraine"]
[BlackTeam "Israel"]
[WhiteTeamCountry "UKR"]
[BlackTeamCountry "ISR"]
[TimeControl "40/5400+30:1800+30"]

1. e4 {[%emt 0:00:01]} c5 {[%emt 0:00:08]} 2. Nf3 {[%emt 0:00:05]} d6 {[%emt 0:00:04]} 3. d4 {[%emt 0:00:10]} cxd4 {[%emt 0:00:02]} 4. Nxd4 {[%emt 0:00:07]} Nf6 {[%emt 0:00:06]} 5. Nc3 {[%emt 0:00:04]} a6 {[%emt 0:00:03]} 6. Be3 {[%emt 0:00:17]} e5 {[%emt 0:00:09]} 7. Nf3 {[%emt 0:00:11]} Be7 {[%emt 0:01:11]} 8. h3 {[%emt 0:00:06]} O-O {[%emt 0:01:27]} 9. g4 {[%emt 0:00:04]} Be6 {[%emt 0:14:58]} 10. g5 {[%emt 0:00:31]} Nh5 {[%emt 0:10:39]} 11. h4 {[%emt 0:02:06]} Nd7 {[%emt 0:05:12]} 12. Nd5 {[%emt 0:03:26]} Rc8 {[%emt 0:01:25]} 13. Qd2 {[%emt 0:12:05]} Nc5 {[%emt 0:09:02]} 14. O-O-O {[%emt 0:09:27]} Nxe4 {[%emt 0:09:28]} 15. Qb4 {[%emt 0:00:12]} Nc5 {[%emt 0:01:16]} 16. Bxc5 {[%emt 0:02:14]} Rxc5 {[%emt 0:15:56]} 17. Qxb7 {[%emt 0:00:06]} Bxd5 {[%emt 0:00:23]} 18. Rxd5 {[%emt 0:00:06]} Rxd5 {[%emt 0:00:18]} 19. Qxd5 {[%emt 0:00:05]} Qb6 {[%emt 0:00:10]} 20. Bc4 {[%emt 0:06:59]} Nf4 {[%emt 0:04:15]} 21. Qd2 {[%emt 0:00:24]} Qc6 {[%emt 0:00:02]} 22. Be2 {[%emt 0:02:33]} f6 {[%emt 0:00:19]} 23. gxf6 {[%emt 0:06:56]} Bxf6 {[%emt 0:10:02]} 24. Bd1 {[%emt 0:00:33]} e4 {[%emt 0:01:50]} 25. Nd4 {[%emt 0:01:48]} Bxd4 {[%emt 0:00:23]} 26. Qxd4 {[%emt 0:00:13]} e3 {[%emt 0:00:03]} 27. Rg1 {[%emt 0:00:07]} Ng6 {[%emt 0:09:50]} 28. Qxe3 {[%emt 0:01:03]} Qd5 {[%emt 0:01:16]} 29. h5 {[%emt 0:03:00]} Nf4 {[%emt 0:00:45]} 30. h6 {[%emt 0:00:39]} g6 {[%emt 0:00:40]} 31. Qc3 {[%emt 0:00:52]} Qe5 {[%emt 0:00:32]} 32. Qxe5 {[%emt 0:00:45]} dxe5 {[%emt 0:00:01]} 33. Re1 {[%emt 0:00:16]} Rf5 {[%emt 0:00:31]} 34. Bg4 {[%emt 0:00:06]} Rg5 {[%emt 0:00:29]} 35. f3 {[%emt 0:00:06]} Nh5 {[%emt 0:00:19]} 36. Re4 {[%emt 0:02:08]} Nf6 {[%emt 0:01:28]} 37. Rb4 {[%emt 0:00:11]} Kf7 {[%emt 0:01:47]} 38. Rb7+ {[%emt 0:00:56]} Ke8 {[%emt 0:00:01]} 39. Be6 {[%emt 0:01:48]} e4 {[%emt 0:00:27]} 40. fxe4 {[%emt 0:00:00]} Rg1+ {[%emt 0:00:00]} 41. Kd2 {[%emt 0:00:49]} Nxe4+ {[%emt 0:01:59]} 42. Ke3 {[%emt 0:00:04]} Nd6 {[%emt 0:05:17]} 43. Kf2 {[%emt 0:03:28]} Nxb7 {[%emt 0:00:23]} 44. Kxg1 {[%emt 0:00:05]} a5 {[%emt 0:03:30]} 45. Kf2 {[%emt 0:01:04]} Ke7 {[%emt 0:00:49]} 46. Bg8 {[%emt 0:00:08]} Nd6 {[%emt 0:00:24]} 47. a4 {[%emt 0:03:40]} Nf5 {[%emt 0:00:41]} 48. Bxh7 {[%emt 0:00:20]} Nxh6 {[%emt 0:08:06]} 49. Bxg6 {[%emt 0:00:05]} Kd6 {[%emt 0:00:05]} 50. Bd3 {[%emt 0:00:35]} Kc5 {[%emt 0:00:44]} 51. c3 {[%emt 0:00:07]} Ng4+ {[%emt 0:03:27]} 52. Ke2 {[%emt 0:00:07]} Ne5 {[%emt 0:01:22]} 53. Bb5 {[%emt 0:00:10]} Nf7 {[%emt 0:00:45]} 54. Kd2 {[%emt 0:00:07]} Ne5 {[%emt 0:01:02]} 55. Kc2 {[%emt 0:00:06]} Nf3 {[%emt 0:00:26]} 56. Be2 {[%emt 0:00:18]} Ne5 {[%emt 0:05:51]} 57. Kb3 {[%emt 0:00:12]} Kc6 {[%emt 0:02:37]} 58. Ka3 {[%emt 0:00:08]} Kb6 {[%emt 0:00:09]} 59. b4 {[%emt 0:00:37]} Nc6 {[%emt 0:00:06]} 60. Bf3 {[%emt 0:00:34]} Ne5 {[%emt 0:00:21]} 61. Bd5 {[%emt 0:00:11]} Nd3 {[%emt 0:00:08]} 62. Kb3 {[%emt 0:00:30]} Ne5 {[%emt 0:00:45]} 63. Be4 {[%emt 0:00:35]} Ka6 {[%emt 0:00:12]} 64. Bc6 {[%emt 0:01:28]} Kb6 {[%emt 0:00:35]} 65. Bb5 {[%emt 0:00:04]} Nf7 {[%emt 0:00:08]} 66. c4 {[%emt 0:02:23]} axb4 {[%emt 0:00:56]} 67. Kxb4 {[%emt 0:00:04]} Ng5 {[%emt 0:01:16]} 68. a5+ {[%emt 0:00:12]} Kc7 {[%emt 0:00:24]} 69. Ba4 {[%emt 0:01:22]} Ne6 {[%emt 0:00:18]} 70. Bc2 {[%emt 0:00:13]} Kb7 {[%emt 0:00:31]} 71. Be4+ {[%emt 0:00:24]} Ka6 {[%emt 0:00:10]} 72. Bf5 {[%emt 0:01:04]} Nd4 {[%emt 0:00:46]} 73. Bc8+ {[%emt 0:00:12]} Ka7 {[%emt 0:00:02]} 74. Bd7 {[%emt 0:00:06]} Kb7 {[%emt 0:00:22]} 75. Ba4 {[%emt 0:02:01]} Ka6 {[%emt 0:00:11]} 76. c5 {[%emt 0:00:17]} Ne6 {[%emt 0:00:07]} 77. Bb5+ {[%emt 0:00:19]} Kb7 {[%emt 0:00:05]} 78. Kc4 {[%emt 0:00:15]} Nc7 {[%emt 0:00:26]} 79. c6+ {[%emt 0:00:30]} Kb8 {[%emt 0:00:21]} 80. Kc5 {[%emt 0:00:10]} Ne6+ {[%emt 0:00:25]} 81. Kd6 {[%emt 0:00:19]} Nc7 {[%emt 0:00:07]} 82. Bc4 {[%emt 0:00:10]} Ne8+ {[%emt 0:00:08]} 83. Kd7 {[%emt 0:00:06]} Nc7 {[%emt 0:00:04]} 84. a6 {[%emt 0:00:54]} Na8 {[%emt 0:00:02]} 85. Kd8 {[%emt 0:00:14]} Nc7 {[%emt 0:00:16]} 86. a7+ {[%emt 0:00:04]} 1-0

[Event "EYTCC Open U18 2022"]
[Site "Thessaloniki"]
[Date "2022.07.15"]
[Round "4.22"]
[White "Yaniv, Yuval"]
[Black "Prokofiev, Valentyn"]
[Result "1-0"]
[ECO "B05"]
[WhiteElo "2305"]
[BlackElo "2286"]
[Annotator "ChessBase"]
[PlyCount "95"]
[EventDate "2022.07.12"]
[EventType "team-tourn"]
[EventCountry "GRE"]
[SourceTitle "playchess.com"]
[Source "ChessBase"]
[SourceQuality "1"]
[WhiteTeam "Israel"]
[BlackTeam "Ukraine"]
[WhiteTeamCountry "ISR"]
[BlackTeamCountry "UKR"]
[TimeControl "40/5400+30:1800+30"]

1. e4 Nf6 {[%emt 0:00:07]} 2. e5 {[%emt 0:00:13]} Nd5 {[%emt 0:00:30]} 3. d4 {[%emt 0:00:30]} d6 {[%emt 0:00:00]} 4. Nf3 {[%emt 0:02:09]} Bg4 {[%emt 0:00:00]} 5. Be2 {[%emt 0:01:22]} c6 {[%emt 0:00:00]} 6. c4 {[%emt 0:03:43]} Nc7 {[%emt 0:00:00]} 7. exd6 {[%emt 0:02:09]} exd6 {[%emt 0:00:00]} 8. O-O {[%emt 0:02:22]} Be7 {[%emt 0:00:38]} 9. Nc3 {[%emt 0:02:14]} O-O {[%emt 0:03:11]} 10. h3 {[%emt 0:01:42]} Bh5 {[%emt 0:02:35]} 11. Qb3 {[%emt 0:03:51]} Qc8 {[%emt 0:00:12]} 12. Be3 {[%emt 0:00:41]} Nd7 {[%emt 0:01:54]} 13. Rac1 {[%emt 0:03:46]} f5 {[%emt 0:03:32]} 14. Rfe1 {[%emt 0:05:19]} Nf6 {[%emt 0:23:04]} 15. d5 {[%emt 0:04:22]} c5 {[%emt 0:03:28]} 16. Ng5 {[%emt 0:13:58]} Bf7 {[%emt 0:03:54]} 17. Bf3 {[%emt 0:03:17]} Nd7 {[%emt 0:17:30]} 18. Nxf7 {[%emt 0:02:21]} Kxf7 {[%emt 0:21:15]} 19. Bf4 {[%emt 0:02:37]} Re8 {[%emt 0:00:26]} 20. Re6 {[%emt 0:09:30]} Nb6 {[%emt 0:04:46]} 21. Rxd6 {[%emt 0:03:14]} Bxd6 {[%emt 0:01:30]} 22. Bxd6 {[%emt 0:00:02]} Na6 {[%emt 0:00:26]} 23. Nb5 {[%emt 0:03:27]} Kg8 {[%emt 0:01:52]} 24. a3 {[%emt 0:02:48]} Qd8 {[%emt 0:01:38]} 25. Bf4 {[%emt 0:03:05]} Qh4 {[%emt 0:02:46]} 26. Bd2 {[%emt 0:06:31]} Qf6 {[%emt 0:03:44]} 27. g3 {[%emt 0:02:48]} Nd7 {[%emt 0:00:55]} 28. d6 {[%emt 0:01:09]} Rab8 {[%emt 0:00:12]} 29. h4 {[%emt 0:05:38]} Kh8 {[%emt 0:01:06]} 30. Bd5 {[%emt 0:01:24]} Qf8 {[%emt 0:01:18]} 31. Bf4 {[%emt 0:00:46]} Nf6 {[%emt 0:01:49]} 32. Nc7 {[%emt 0:02:31]} Nxd5 {[%emt 0:01:30]} 33. cxd5 {[%emt 0:00:02]} Re4 {[%emt 0:00:38]} 34. Ne6 {[%emt 0:00:42]} Qe8 {[%emt 0:00:31]} 35. d7 {[%emt 0:00:49]} Qxd7 {[%emt 0:00:18]} 36. Bxb8 {[%emt 0:00:10]} c4 {[%emt 0:00:00]} 37. Qd1 {[%emt 0:03:00]} b5 {[%emt 0:00:49]} 38. Bf4 {[%emt 0:00:29]} h6 {[%emt 0:00:10]} 39. f3 {[%emt 0:00:47]} Rxe6 40. dxe6 {[%emt 0:00:00]} Qxe6 {[%emt 0:00:00]} 41. Qd6 {[%emt 0:00:56]} Qc8 {[%emt 0:00:40]} 42. Rd1 {[%emt 0:01:26]} Kh7 {[%emt 0:00:02]} 43. h5 {[%emt 0:00:50]} Nc5 {[%emt 0:00:37]} 44. Qg6+ {[%emt 0:00:26]} Kh8 {[%emt 0:00:02]} 45. Re1 {[%emt 0:00:20]} Ne4 {[%emt 0:00:03]} 46. fxe4 {[%emt 0:00:16]} Qc5+ {[%emt 0:00:01]} 47. Be3 {[%emt 0:00:10]} Qe5 {[%emt 0:00:06]} 48. Rd1 {[%emt 0:00:30]} 1-0